fUST/lending_fUST_20240724
["ID","MTS","AMOUNT","RATE_DAILY","PERIOD"]
[333049914,1721778648915,-500.0,0.00013698,2]
[333049916,1721778648926,-592.04177035,0.00013698,2]
[333049918,1721778648936,-500.0,0.00013698,2]
[333049920,1721778648946,-500.0,0.00013698,2]
[333049922,1721778648955,-500.0,0.00013698,2]
[333049924,1721778648965,-500.0,0.00013698,2]
[333049926,1721778648975,-500.0,0.00013698,2]
[333049928,1721778648985,-500.0,0.00013698,2]
[333049930,1721778648995,-500.0,0.00013698,2]
[333049932,1721778649005,-500.0,0.00013698,2]
[333049934,1721778649014,-500.0,0.00013698,2]
[333049936,1721778649024,-500.0,0.00013698,2]
[333049937,1721778649034,-500.0,0.00013698,2]
[333049940,1721778649046,-500.0,0.00013698,2]
[333049942,1721778649056,-500.0,0.00013698,2]
[333049944,1721778649066,-500.0,0.00013698,2]
[333049945,1721778649076,-500.0,0.00013698,2]
[333049948,1721778649087,-500.0,0.00013698,2]
[333049950,1721778649099,-500.0,0.00013698,2]
[333049952,1721778649109,-500.0,0.00013698,2]
[333049953,1721778649119,-500.0,0.00013698,2]
[333049955,1721778649128,-500.0,0.00013698,2]
[333049958,1721778649138,-500.0,0.00013698,2]
[333049960,1721778649149,-336.16,0.00013698,2]
[333049961,1721778649159,-500.0,0.00013698,2]
[333049963,1721778649169,-500.0,0.00013698,2]
[333049965,1721778649179,-500.0,0.00013698,2]
[333049968,1721778649190,-500.0,0.00013698,2]
[333049970,1721778649200,-500.0,0.00013698,2]
[333049972,1721778649211,-175.72,0.00013698,2]
[333049974,1721778649223,-500.0,0.00013698,2]
[333049976,1721778649233,-500.0,0.00013698,2]
[333049977,1721778649245,-500.0,0.00013698,2]
[333049979,1721778649255,-203.39,0.00013698,2]
[333049981,1721778649264,-500.0,0.00013698,2]
[333049983,1721778649274,-500.0,0.00013698,2]
[333049985,1721778649284,-500.0,0.00013698,2]
[333049987,1721778649293,-500.0,0.00013698,2]
[333049989,1721778649302,-500.0,0.00013698,2]
[333049991,1721778649312,-500.0,0.00013698,2]
[333049993,1721778649321,-500.0,0.00013698,2]
[333049995,1721778649331,-500.0,0.00013698,2]
[333049997,1721778649342,-500.0,0.00013698,2]
[333049999,1721778649354,-500.0,0.00013698,2]
[333050001,1721778649364,-500.0,0.00013698,2]
[333050003,1721778649374,-500.0,0.00013698,2]
[333050005,1721778649384,-500.0,0.00013698,2]
[333050007,1721778649394,-500.0,0.00013698,2]
[333050009,1721778649404,-500.0,0.00013698,2]
[333050011,1721778649415,-500.0,0.00013698,2]
[333050013,1721778649424,-500.0,0.00013698,2]
[333050015,1721778649435,-200.7165205,0.00013698,2]
[333050017,1721778649446,-287.83,0.00013698,2]
[333050019,1721778649456,-502.36211925,0.00013698,2]
[333050020,1721778649467,-500.0,0.00013698,2]
[333050022,1721778649476,-500.0,0.00013698,2]
[333050024,1721778649486,-500.0,0.00013698,2]
[333050026,1721778649496,-500.0,0.00013698,2]
[333050028,1721778649506,-500.0,0.00013698,2]
[333050030,1721778649516,-500.0,0.00013698,2]
[333050032,1721778649527,-500.0,0.00013698,2]
[333050034,1721778649538,-251.95448152,0.00013698,2]
[333050036,1721778649548,-500.0,0.00013698,2]
[333050038,1721778649558,-500.0,0.00013698,2]
[333050041,1721778649573,-500.0,0.00013698,2]
[333050043,1721778649583,-500.0,0.00013698,2]
[333050045,1721778649594,-500.0,0.00013698,2]
[333050046,1721778649604,-500.0,0.00013698,2]
[333050048,1721778649614,-500.0,0.00013698,2]
[333050050,1721778649623,-500.0,0.00013698,2]
[333050052,1721778649634,-500.0,0.00013698,2]
[333050054,1721778649645,-500.0,0.00013698,2]
[333050056,1721778649655,-500.0,0.00013698,2]
[333050058,1721778649664,-500.0,0.00013698,2]
[333050060,1721778649675,-500.0,0.00013698,2]
[333050062,1721778649686,-500.0,0.00013698,2]
[333050064,1721778649696,-500.0,0.00013698,2]
[333050067,1721778649705,-500.0,0.00013698,2]
[333050068,1721778649715,-500.0,0.00013698,2]
[333050071,1721778649726,-500.0,0.00013698,2]
[333050073,1721778649736,-500.0,0.00013698,2]
[333050075,1721778649746,-195.89280405,0.00013698,2]
[333050077,1721778649756,-500.0,0.00013698,2]
[333050079,1721778649766,-500.0,0.00013698,2]
[333050081,1721778649777,-500.0,0.00013698,2]
[333050083,1721778649787,-500.0,0.00013698,2]
[333050085,1721778649797,-500.0,0.00013698,2]
[333050087,1721778649807,-642.9,0.00013698,2]
[333050089,1721778649817,-500.0,0.00013698,2]
[333050091,1721778649827,-500.0,0.00013698,2]
[333050093,1721778649837,-500.0,0.00013698,2]
[333050095,1721778649847,-500.0,0.00013698,2]
[333050097,1721778649857,-500.0,0.00013698,2]
[333050099,1721778649868,-500.0,0.00013698,2]
[333050101,1721778649879,-500.0,0.00013698,2]
[333050103,1721778649890,-500.0,0.00013698,2]
[333050105,1721778649900,-501.06330563,0.00013698,2]
[333050107,1721778649913,-500.0,0.00013698,2]
[333050109,1721778649924,-500.0,0.00013698,2]
[333050112,1721778649936,-500.0,0.00013698,2]
[333050114,1721778649947,-500.0,0.00013698,2]
[333050116,1721778649956,-500.0,0.00013698,2]
[333050118,1721778649967,-500.0,0.00013698,2]
[333050120,1721778649977,-477.67462171,0.00013698,2]
[333050122,1721778649987,-628.44,0.00013698,2]
[333050124,1721778649997,-500.0,0.00013698,2]
[333050126,1721778650008,-500.0,0.00013698,2]
[333050128,1721778650018,-500.0,0.00013698,2]
[333050130,1721778650027,-500.0,0.00013698,2]
[333050132,1721778650037,-500.0,0.00013698,2]
[333050134,1721778650049,-254.7491897,0.00013698,2]
[333050136,1721778650059,-500.0,0.00013698,2]
[333050138,1721778650069,-500.0,0.00013698,2]
[333050140,1721778650078,-500.0,0.00013698,2]
[333050142,1721778650088,-500.0,0.00013698,2]
[333050144,1721778650098,-500.0,0.00013698,2]
[333050146,1721778650108,-500.0,0.00013698,2]
[333050148,1721778650119,-500.0,0.00013698,2]
[333050150,1721778650130,-500.0,0.00013698,2]
[333050152,1721778650140,-500.0,0.00013698,2]
[333050155,1721778650153,-500.0,0.00013698,2]
[333050157,1721778650163,-638.5,0.00013698,2]
[333050159,1721778650172,-500.0,0.00013698,2]
[333050161,1721778650182,-344.33785008,0.00013698,2]
[333050163,1721778650192,-500.0,0.00013698,2]
[333050165,1721778650205,-500.0,0.00013698,2]
[333050168,1721778650217,-500.0,0.00013698,2]
[333050170,1721778650227,-500.0,0.00013698,2]
[333050172,1721778650237,-500.0,0.00013698,2]
[333050174,1721778650247,-500.0,0.00013698,2]
[333050176,1721778650258,-500.0,0.00013698,2]
[333050178,1721778650270,-500.0,0.00013698,2]
[333050180,1721778650279,-500.0,0.00013698,2]
[333050182,1721778650290,-500.0,0.00013698,2]
[333050184,1721778650302,-500.0,0.00013698,2]
[333050187,1721778650313,-500.0,0.00013698,2]
[333050189,1721778650323,-500.0,0.00013698,2]
[333050191,1721778650334,-500.0,0.00013698,2]
[333050193,1721778650344,-500.0,0.00013698,2]
[333050195,1721778650354,-217.08898257,0.00013698,2]
[333050197,1721778650365,-318.39,0.00013698,2]
[333050199,1721778650375,-500.0,0.00013698,2]
[333050201,1721778650385,-500.0,0.00013698,2]
[333050203,1721778650396,-605.88808853,0.00013698,2]
[333050205,1721778650406,-177.79489436,0.00013698,2]
[333050207,1721778650417,-500.0,0.00013698,2]
[333050209,1721778650428,-500.0,0.00013698,2]
[333050211,1721778650439,-500.0,0.00013698,2]
[333050214,1721778650451,-500.0,0.00013698,2]
[333050216,1721778650463,-500.0,0.00013698,2]
[333050218,1721778650474,-500.0,0.00013698,2]
[333050220,1721778650484,-500.0,0.00013698,2]
[333050222,1721778650493,-500.0,0.00013698,2]
[333050224,1721778650503,-500.0,0.00013698,2]
[333050226,1721778650513,-500.0,0.00013698,2]
[333050228,1721778650522,-500.0,0.00013698,2]
[333050230,1721778650531,-565.27,0.00013698,2]
[333050232,1721778650540,-500.0,0.00013698,2]
[333050234,1721778650550,-500.0,0.00013698,2]
[333050236,1721778650559,-500.0,0.00013698,2]
[333050238,1721778650573,-500.0,0.00013698,2]
[333050240,1721778650584,-500.0,0.00013698,2]
[333050242,1721778650595,-500.0,0.00013698,2]
[333050244,1721778650606,-500.0,0.00013698,2]
[333050246,1721778650616,-500.0,0.00013698,2]
[333050249,1721778650627,-500.0,0.00013698,2]
[333050251,1721778650637,-500.0,0.00013698,2]
[333050253,1721778650651,-500.0,0.00013698,2]
[333050255,1721778650661,-500.0,0.00013698,2]
[333050257,1721778650672,-500.0,0.00013698,2]
[333050259,1721778650682,-500.0,0.00013698,2]
[333050261,1721778650691,-334.88,0.00013698,2]
[333050263,1721778650700,-500.0,0.00013698,2]
[333050265,1721778650710,-500.0,0.00013698,2]
[333050268,1721778650720,-500.0,0.00013698,2]
[333050270,1721778650730,-500.0,0.00013698,2]
[333050272,1721778650741,-500.0,0.00013698,2]
[333050274,1721778650751,-575.39258033,0.00013698,2]
[333050276,1721778650763,-500.0,0.00013698,2]
[333050278,1721778650775,-500.0,0.00013698,2]
[333050280,1721778650786,-500.0,0.00013698,2]
[333050282,1721778650797,-500.0,0.00013698,2]
[333050284,1721778650807,-500.0,0.00013698,2]
[333050286,1721778650816,-500.0,0.00013698,2]
[333050288,1721778650826,-500.0,0.00013698,2]
[333050290,1721778650835,-500.0,0.00013698,2]
[333050292,1721778650845,-500.0,0.00013698,2]
[333050294,1721778650854,-500.0,0.00013698,2]
[333050296,1721778650864,-559.119639,0.00013698,2]
[333050298,1721778650873,-500.0,0.00013698,2]
[333050300,1721778650883,-500.0,0.00013698,2]
[333050302,1721778650893,-500.0,0.00013698,2]
[333050304,1721778650903,-266.99467387,0.00013698,2]
[333050307,1721778650913,-500.0,0.00013698,2]
[333050309,1721778650923,-500.0,0.00013698,2]
[333050311,1721778650933,-500.0,0.00013698,2]
[333050313,1721778650943,-500.0,0.00013698,2]
[333050315,1721778650952,-500.0,0.00013698,2]
[333050317,1721778650961,-500.0,0.00013698,2]
[333050319,1721778650971,-505.84,0.00013698,2]
[333050321,1721778650981,-556.33,0.00013698,2]
[333050323,1721778650990,-500.0,0.00013698,2]
[333050325,1721778651000,-500.0,0.00013698,2]
[333050327,1721778651013,-500.0,0.00013698,2]
[333050329,1721778651023,-504.0164276,0.00013698,2]
[333050331,1721778651033,-500.0,0.00013698,2]
[333050333,1721778651043,-500.0,0.00013698,2]
[333050335,1721778651054,-500.0,0.00013698,2]
[333050337,1721778651065,-500.0,0.00013698,2]
[333050340,1721778651075,-500.0,0.00013698,2]
[333050342,1721778651087,-419.95819049,0.00013698,2]
[333050344,1721778651097,-500.0,0.00013698,2]
[333050346,1721778651108,-500.0,0.00013698,2]
[333050348,1721778651119,-500.0,0.00013698,2]
[333050351,1721778651130,-531.31,0.00013698,2]
[333050353,1721778651140,-522.41324221,0.00013698,2]
[333050355,1721778651152,-500.0,0.00013698,2]
[333050357,1721778651162,-383.79241641,0.00013698,2]
[333050359,1721778651173,-360.77,0.00013698,2]
[333050361,1721778651184,-500.0,0.00013698,2]
[333050364,1721778651195,-500.0,0.00013698,2]
[333050366,1721778651206,-500.0,0.00013698,2]
[333050368,1721778651217,-500.0,0.00013698,2]
[333050370,1721778651228,-500.0,0.00013698,2]
[333050372,1721778651239,-223.39696642,0.00013698,2]
[333050375,1721778651252,-578.19,0.00013698,2]
[333050377,1721778651262,-500.0,0.00013698,2]
[333050379,1721778651272,-500.0,0.00013698,2]
[333050381,1721778651283,-500.0,0.00013698,2]
[333050383,1721778651294,-561.68,0.00013698,2]
[333050385,1721778651304,-500.0,0.00013698,2]
[333050388,1721778651314,-500.0,0.00013698,2]
[333050390,1721778651325,-554.8,0.00013698,2]
[333050392,1721778651335,-500.0,0.00013698,2]
[333050394,1721778651346,-500.0,0.00013698,2]
[333050396,1721778651357,-500.0,0.00013698,2]
[333050398,1721778651367,-500.0,0.00013698,2]
[333050400,1721778651377,-500.0,0.00013698,2]
[333050403,1721778651389,-500.0,0.00013698,2]
[333050405,1721778651400,-565.6,0.00013698,2]
[333050407,1721778651410,-500.0,0.00013698,2]
[333050409,1721778651422,-648.14,0.00013698,2]
[333050411,1721778651432,-500.0,0.00013698,2]
[333050414,1721778651443,-174.86310928,0.00013698,2]
[333050416,1721778651454,-500.0,0.00013698,2]
[333050418,1721778651465,-500.0,0.00013698,2]
[333050440,1721778651660,-500.0,0.00013698,2]
[333050442,1721778651671,-500.0,0.00013698,2]
[333050444,1721778651681,-500.0,0.00013698,2]
[333050446,1721778651693,-315.2,0.00013698,2]
[333050448,1721778651703,-500.0,0.00013698,2]
[333050450,1721778651715,-500.0,0.00013698,2]
[333050453,1721778651726,-644.61,0.00013698,2]
[333050455,1721778651736,-153.92,0.00013698,2]
[333050457,1721778651749,-500.0,0.00013698,2]
[333050459,1721778651759,-500.0,0.00013698,2]
[333050461,1721778651770,-529.69,0.00013698,2]
[333050464,1721778651782,-500.0,0.00013698,2]
[333050466,1721778651793,-500.0,0.00013698,2]
[333050468,1721778651803,-511.22,0.00013698,2]
[333050470,1721778651813,-449.58184146,0.00013698,2]
[333050472,1721778651823,-588.81283957,0.00013698,2]
[333050474,1721778651833,-500.0,0.00013698,2]
[333050477,1721778651844,-407.18,0.00013698,2]
[333050479,1721778651854,-500.0,0.00013698,2]
[333050481,1721778651865,-500.0,0.00013698,2]
[333050483,1721778651875,-500.0,0.00013698,2]
[333050485,1721778651886,-500.0,0.00013698,2]
[333050488,1721778651900,-500.0,0.00013698,2]
[333050490,1721778651910,-500.0,0.00013698,2]
[333050492,1721778651919,-500.0,0.00013698,2]
[333050494,1721778651930,-500.0,0.00013698,2]
[333050496,1721778651943,-500.0,0.00013698,2]
[333050499,1721778651953,-500.0,0.00013698,2]
[333050501,1721778651964,-500.0,0.00013698,2]
[333050503,1721778651975,-500.0,0.00013698,2]
[333050505,1721778651986,-500.0,0.00013698,2]
[333050507,1721778651996,-500.0,0.00013698,2]
[333050509,1721778652009,-604.38,0.00013698,2]
[333050512,1721778652020,-500.0,0.00013698,2]
[333050514,1721778652030,-500.0,0.00013698,2]
[333050516,1721778652040,-500.0,0.00013698,2]
[333050518,1721778652049,-500.0,0.00013698,2]
[333050520,1721778652058,-527.61,0.00013698,2]
[333050522,1721778652067,-500.0,0.00013698,2]
[333050524,1721778652076,-234.00721895,0.00013698,2]
[333050526,1721778652086,-524.27020938,0.00013698,2]
[333050528,1721778652095,-500.0,0.00013698,2]
[333050530,1721778652105,-500.0,0.00013698,2]
[333050532,1721778652115,-288.15609103,0.00013698,2]
[333050534,1721778652125,-500.0,0.00013698,2]
[333050536,1721778652137,-167.05,0.00013698,2]
[333050538,1721778652146,-351.32,0.00013698,2]
[333050540,1721778652155,-500.0,0.00013698,2]
[333050542,1721778652165,-500.0,0.00013698,2]
[333050544,1721778652174,-500.0,0.00013698,2]
[333050546,1721778652184,-500.0,0.00013698,2]
[333050548,1721778652194,-500.0,0.00013698,2]
[333050550,1721778652203,-500.0,0.00013698,2]
[333050552,1721778652213,-500.0,0.00013698,2]
[333050554,1721778652223,-354.97,0.00013698,2]
[333050556,1721778652232,-514.46089773,0.00013698,2]
[333050558,1721778652241,-500.0,0.00013698,2]
[333050560,1721778652250,-500.0,0.00013698,2]
[333050562,1721778652260,-500.0,0.00013698,2]
[333050564,1721778652270,-500.0,0.00013698,2]
[333050566,1721778652280,-244.8,0.00013698,2]
[333050568,1721778652289,-500.0,0.00013698,2]
[333050570,1721778652298,-500.0,0.00013698,2]
[333050572,1721778652309,-500.0,0.00013698,2]
[333050574,1721778652318,-500.0,0.00013698,2]
[333050576,1721778652328,-502.81409546,0.00013698,2]
[333050578,1721778652337,-500.0,0.00013698,2]
[333050580,1721778652347,-535.54,0.00013698,2]
[333050582,1721778652357,-238.36208966,0.00013698,2]
[333050584,1721778652366,-500.0,0.00013698,2]
[333050586,1721778652375,-500.0,0.00013698,2]
[333050588,1721778652385,-500.0,0.00013698,2]
[333050590,1721778652394,-353.52826256,0.00013698,2]
[333051951,1721779635142,-300.0,9.998e-05,2]
[333051952,1721779635164,-300.0,9.998e-05,2]
[333051953,1721779635185,-155.30077914,9.999e-05,2]
[333051954,1721779635207,-196.26871937,9.999e-05,2]
[333051955,1721779635228,-521.07713562,9.999e-05,2]
[333051956,1721779635252,-848.53287184,9.999e-05,2]
[333051957,1721779635272,-941.66960481,9.999e-05,2]
[333051958,1721779635294,-567.88989652,9.999e-05,2]
[333051959,1721779635318,-518.96291688,9.999e-05,2]
[333051960,1721779635340,-778.7273512,9.999e-05,2]
[333051961,1721779635363,-180.26214213,9.999e-05,2]
[333051962,1721779635385,-253.56391645,9.999e-05,2]
[333051963,1721779635408,-248.79133132,9.999e-05,2]
[333051964,1721779635429,-154.68290005,9.999e-05,2]
[333051965,1721779635449,-155.70429949,9.999e-05,2]
[333051966,1721779635474,-188.04294313,9.999e-05,2]
[333051967,1721779635497,-600.13398143,9.999e-05,2]
[333051968,1721779635519,-375.56627462,9.999e-05,2]
[333051969,1721779635542,-531.21907352,9.999e-05,2]
[333051970,1721779635570,-154.76012181,9.999e-05,2]
[333051971,1721779635596,-154.76012181,9.999e-05,2]
[333051972,1721779635620,-159.31280748,9.999e-05,2]
[333051973,1721779635643,-533.28027744,9.999e-05,2]
[333051974,1721779635664,-208.52011681,9.999e-05,2]
[333051975,1721779635685,-155.02976269,9.999e-05,2]
[333051976,1721779635707,-154.76012181,9.999e-05,2]
[333051977,1721779635731,-404.26765741,9.999e-05,2]
[333051978,1721779635756,-302.14568683,9.999e-05,2]
[333051979,1721779635780,-725.46017295,9.999e-05,2]
[333051980,1721779635801,-159.9761619,9.999e-05,2]
[333051981,1721779635823,-154.76012181,9.999e-05,2]
[333051982,1721779635844,-154.76012181,9.999e-05,2]
[333051983,1721779635866,-154.76012181,0.0001,2]
[333051984,1721779635891,-287.42676554,0.0001,2]
[333051985,1721779635917,-420.0,0.00010998,2]
[333051986,1721779635943,-350.0,0.00011537,2]
[333051987,1721779635969,-293.1268563,0.00011537,2]
[333051988,1721779635996,-574.0,0.00012098,2]
[333051989,1721779636022,-24900.0,0.00012178,2]
[333051990,1721779636049,-250.0,0.00012251,2]
[333051991,1721779636073,-250.0,0.00012285,2]
[333051992,1721779636102,-250.0,0.00012319,2]
[333051993,1721779636131,-250.0,0.00012352,2]
[333051994,1721779636154,-250.0,0.00012386,2]
[333051995,1721779636176,-250.0,0.00012419,2]
[333051996,1721779636199,-250.0,0.00012453,2]
[333051997,1721779636220,-250.0,0.00012487,2]
[333051998,1721779636246,-250.0,0.0001252,2]
[333051999,1721779636270,-250.0,0.00012554,2]
[333052000,1721779636294,-250.0,0.00012587,2]
[333052001,1721779636317,-250.0,0.00012621,2]
[333052002,1721779636343,-250.0,0.00012655,2]
[333052003,1721779636366,-250.0,0.00012688,2]
[333052004,1721779636389,-250.0,0.00012722,2]
[333052005,1721779636412,-250.0,0.00012755,2]
[333052006,1721779636437,-250.0,0.00012789,2]
[333052007,1721779636460,-250.0,0.00012822,2]
[333052008,1721779636486,-250.0,0.00012856,2]
[333052009,1721779636508,-250.0,0.0001289,2]
[333052010,1721779636532,-293.8425286,0.000131,2]
[333052011,1721779636556,-289.107788,0.000131,2]
[333052012,1721779636580,-153.0,0.00013152,2]
[333052013,1721779636603,-153.0,0.00013252,2]
[333052014,1721779636625,-200.0,0.00013425,2]
[333052015,1721779636646,-153.0,0.00013452,2]
[333052016,1721779636672,-501.1520517,0.00013598,2]
[333052017,1721779636700,-87589.08645409,0.00013688,2]
[333052018,1721779643378,-154.80651967,9.999e-05,2]
[333052019,1721779643401,-42566.65808291,0.00013688,2]
[333052020,1721779643423,-7656.22026688,0.00013689,2]
[333052021,1721779643445,-1054.056,0.0001369,2]
[333052022,1721779643465,-146.47173744,0.00013698,2]
[333052023,1721779643485,-500.0,0.00013698,2]
[333052024,1721779643506,-409.25288557,0.00013698,2]
[333052025,1721779643527,-500.0,0.00013698,2]
[333052026,1721779643548,-500.0,0.00013698,2]
[333052027,1721779643568,-500.0,0.00013698,2]
[333052028,1721779643589,-500.0,0.00013698,2]
[333052029,1721779643612,-434.1341042,0.00013698,2]
[333052030,1721779643632,-500.0,0.00013698,2]
[333052031,1721779643651,-500.0,0.00013698,2]
[333052032,1721779643672,-500.0,0.00013698,2]
[333052033,1721779643692,-500.0,0.00013698,2]
[333052034,1721779643714,-500.0,0.00013698,2]
[333052035,1721779643735,-500.0,0.00013698,2]
[333052036,1721779643761,-500.0,0.00013698,2]
[333052037,1721779643783,-500.0,0.00013698,2]
[333052038,1721779643804,-500.0,0.00013698,2]
[333052039,1721779643824,-500.0,0.00013698,2]
[333052040,1721779643844,-500.0,0.00013698,2]
[333052041,1721779643864,-500.0,0.00013698,2]
[333052042,1721779643883,-500.0,0.00013698,2]
[333052043,1721779643906,-500.0,0.00013698,2]
[333052044,1721779643926,-500.0,0.00013698,2]
[333052045,1721779643947,-500.0,0.00013698,2]
[333052046,1721779643967,-259.9120708,0.00013698,2]
[333052047,1721779643987,-500.0,0.00013698,2]
[333052048,1721779644007,-500.0,0.00013698,2]
[333052049,1721779644032,-500.0,0.00013698,2]
[333052050,1721779644059,-500.0,0.00013698,2]
[333052051,1721779644080,-500.0,0.00013698,2]
[333052052,1721779644101,-384.66,0.00013698,2]
[333052053,1721779644123,-500.0,0.00013698,2]
[333052054,1721779644144,-632.04,0.00013698,2]
[333052055,1721779644164,-500.0,0.00013698,2]
[333052056,1721779644186,-200.9,0.00013698,2]
[333052057,1721779644210,-316.07,0.00013698,2]
[333052058,1721779644234,-500.0,0.00013698,2]
[333052059,1721779644256,-223.1,0.00013698,2]
[333052060,1721779644276,-500.0,0.00013698,2]
[333052061,1721779644296,-500.0,0.00013698,2]
[333052062,1721779644318,-500.0,0.00013698,2]
[333052063,1721779644342,-500.0,0.00013698,2]
[333052064,1721779644363,-500.0,0.00013698,2]
[333052065,1721779644383,-500.0,0.00013698,2]
[333052066,1721779644403,-187.94,0.00013698,2]
[333052067,1721779644424,-500.0,0.00013698,2]
[333052068,1721779644444,-500.0,0.00013698,2]
[333052069,1721779644464,-500.0,0.00013698,2]
[333052070,1721779644484,-500.0,0.00013698,2]
[333052071,1721779644504,-500.0,0.00013698,2]
[333052072,1721779644525,-503.36422213,0.00013698,2]
[333052073,1721779644546,-500.0,0.00013698,2]
[333052074,1721779644566,-556.62,0.00013698,2]
[333052075,1721779644587,-504.70362065,0.00013698,2]
[333052076,1721779644621,-500.0,0.00013698,2]
[333052077,1721779644652,-500.0,0.00013698,2]
[333052078,1721779644680,-552.12,0.00013698,2]
[333052079,1721779644709,-500.0,0.00013698,2]
[333052080,1721779644739,-500.0,0.00013698,2]
[333052081,1721779644769,-500.0,0.00013698,2]
[333052082,1721779644798,-500.0,0.00013698,2]
[333052083,1721779644827,-500.0,0.00013698,2]
[333052084,1721779644857,-500.0,0.00013698,2]
[333052085,1721779644883,-500.0,0.00013698,2]
[333052086,1721779644907,-500.0,0.00013698,2]
[333052087,1721779644935,-500.0,0.00013698,2]
[333052088,1721779644964,-500.0,0.00013698,2]
[333052089,1721779644993,-500.0,0.00013698,2]
[333052090,1721779645022,-515.52653776,0.00013698,2]
[333052091,1721779645048,-500.0,0.00013698,2]
[333052092,1721779645072,-500.0,0.00013698,2]
[333052093,1721779645102,-500.0,0.00013698,2]
[333052094,1721779645130,-500.0,0.00013698,2]
[333052095,1721779645158,-500.0,0.00013698,2]
[333052096,1721779645184,-500.0,0.00013698,2]
[333052097,1721779645209,-500.0,0.00013698,2]
[333052098,1721779645234,-500.0,0.00013698,2]
[333052099,1721779645263,-500.0,0.00013698,2]
[333052100,1721779645289,-500.0,0.00013698,2]
[333052101,1721779645315,-505.78855562,0.00013698,2]
[333052102,1721779645341,-500.0,0.00013698,2]
[333052103,1721779645366,-502.05371275,0.00013698,2]
[333052104,1721779645395,-500.0,0.00013698,2]
[333052105,1721779645421,-306.74,0.00013698,2]
[333052106,1721779645448,-500.0,0.00013698,2]
[333052107,1721779645473,-500.0,0.00013698,2]
[333052108,1721779645500,-500.0,0.00013698,2]
[333052109,1721779645526,-500.0,0.00013698,2]
[333052110,1721779645551,-505.89,0.00013698,2]
[333052111,1721779645578,-503.38963476,0.00013698,2]
[333052112,1721779645606,-525.43425346,0.00013698,2]
[333052113,1721779645632,-500.0,0.00013698,2]
[333052114,1721779645658,-500.0,0.00013698,2]
[333052115,1721779645708,-500.0,0.00013698,2]
[333052116,1721779645762,-500.0,0.00013698,2]
[333052117,1721779645815,-500.0,0.00013698,2]
[333052118,1721779645868,-500.0,0.00013698,2]
[333052119,1721779645913,-500.0,0.00013698,2]
[333052120,1721779645941,-500.0,0.00013698,2]
[333052121,1721779645968,-500.0,0.00013698,2]
[333052122,1721779645996,-500.0,0.00013698,2]
[333052123,1721779646027,-500.0,0.00013698,2]
[333052124,1721779646058,-500.0,0.00013698,2]
[333052125,1721779646086,-500.0,0.00013698,2]
[333052126,1721779646115,-500.0,0.00013698,2]
[333052127,1721779646145,-500.0,0.00013698,2]
[333052128,1721779646174,-500.0,0.00013698,2]
[333052129,1721779646201,-500.0,0.00013698,2]
[333052130,1721779646229,-500.0,0.00013698,2]
[333052131,1721779646259,-500.0,0.00013698,2]